fUSD/lending_fUSD_20240205
["ID","MTS","AMOUNT","RATE_DAILY","PERIOD"]
[313341125,1707175843002,-151.0,0.0004289,14]
[313341127,1707175843011,-151.0,0.0004289,14]
[313341129,1707175843020,-175.05967,0.0004289,14]
[313341131,1707175843029,-244818.76479776,0.0004289,3]
[313341133,1707175843038,-300000.0,0.00042891,30]
[313341135,1707175843047,-300000.0,0.00042891,30]
[313341137,1707175843056,-300000.0,0.00042891,30]
[313341139,1707175843066,-101639.94,0.00042891,30]
[313341142,1707175843075,-151.0,0.00042891,14]
[313341144,1707175843084,-160.355164,0.00042891,14]
[313341145,1707175843093,-223.7,0.000429,7]
[313341147,1707175843102,-162.45,0.000429,7]
[313341150,1707175843112,-151.0206,0.00043148,20]
[313341152,1707175843121,-151.0206,0.00043448,20]
[313341154,1707175843131,-6938.0946111,0.0004348,18]
[313341156,1707175843141,-1831.8,0.00043488,5]
[313341158,1707175843151,-151.0206,0.00043748,20]
[313341159,1707175843163,-500.0,0.00043835,7]
[313341162,1707175843173,-745.31,0.00043836,15]
[313341164,1707175843183,-500.0,0.00043972,7]
[313341166,1707175843192,-151.0206,0.00044148,20]
[313341168,1707175843201,-207.95413968,0.00044233,6]
[313341169,1707175843210,-1250.0,0.00044383,7]
[313341172,1707175843221,-151.0206,0.00044448,20]
[313341173,1707175843230,-223.7,0.000445,7]
[313341175,1707175843239,-154.73,0.00044738,2]
[313341177,1707175843248,-151.0206,0.00044748,20]
[313341180,1707175843258,-5000.0,0.0004489,7]
[313341182,1707175843268,-6938.0946111,0.00044903,20]
[313341184,1707175843277,-1799.0,0.00045,21]
[313341186,1707175843286,-151.0206,0.00045148,22]
[313341188,1707175843295,-151.0206,0.00045448,22]
[313341190,1707175843304,-1000.0,0.000455,2]
[313341192,1707175843314,-159.74303658,0.00045619,21]
[313341194,1707175843323,-151.0206,0.00045748,22]
[313341196,1707175843332,-223.7,0.000458,7]
[313341198,1707175843341,-151.0206,0.00046148,24]
[313341200,1707175843350,-151.0,0.00046325,14]
[313341201,1707175843359,-6938.0946111,0.00046325,21]
[313341204,1707175843368,-151.0206,0.00046448,24]
[313341206,1707175843377,-224.0,0.000465,2]
[313341207,1707175843386,-261.65834127,0.00046521,5]
[313341209,1707175843395,-541.91138474,0.00046521,5]
[313341212,1707175843405,-201.93073582,0.00046521,5]
[313341213,1707175843415,-160.80759299,0.00046521,5]
[313341216,1707175843424,-296.2923642,0.00046521,5]
[313341217,1707175843433,-204.13369645,0.00046521,5]
[313341219,1707175843442,-151.0,0.00046662,2]
[313341221,1707175843451,-151.0206,0.00046748,24]
[313341224,1707175843462,-1129.72,0.00046849,120]
[313341226,1707175843475,-645.0,0.0004689,2]
[313341228,1707175843484,-224.0,0.00047,3]
[313341230,1707175843494,-223.7,0.00047,7]
[313341232,1707175843504,-151.0206,0.00047148,26]
[313341234,1707175843512,-1058.63217227,0.00047344,4]
[313341235,1707175843521,-1778.163919,0.00047344,4]
[313341237,1707175843531,-1273.33572797,0.00047382,2]
[313341239,1707175843540,-2837.19323886,0.00047419,2]
[313341241,1707175843550,-20008.11797,0.00047419,2]
[313341243,1707175843560,-302.0,0.00047446,4]
[313341245,1707175843570,-151.0206,0.00047448,26]
[313341247,1707175843580,-224.0,0.000475,4]
[313341249,1707175843591,-745.31,0.00047572,15]
[313341251,1707175843600,-6938.0946111,0.00047748,23]
[313341253,1707175843609,-151.0206,0.00047748,26]
[313341256,1707175843620,-207.95413968,0.00047789,9]
[313341257,1707175843629,-4080.87846078,0.00047846,2]
[313341260,1707175843638,-2620.16524433,0.000479,2]
[313341261,1707175843648,-249.0831616,0.00047924,4]
[313341264,1707175843657,-151.88193308,0.00047925,2]
[313341266,1707175843667,-151.14875218,0.00047925,2]
[313341268,1707175843677,-151.59,0.00047945,2]
[313341270,1707175843686,-224.0,0.00048,5]
[313341272,1707175843695,-150.0,0.00048,2]
[313341274,1707175843704,-151.0206,0.00048148,26]
[313341276,1707175843714,-1000.0,0.000482,2]
[313341278,1707175843723,-604.0,0.00048243,7]
[313341280,1707175843732,-204.0,0.0004829,2]
[313341282,1707175843742,-330.57,0.00048297,15]
[313341284,1707175843751,-330.57,0.00048297,15]
[313341286,1707175843760,-330.57,0.00048297,15]
[313341288,1707175843770,-330.57,0.00048297,15]
[313341290,1707175843779,-330.57,0.00048297,15]
[313341291,1707175843788,-330.57,0.00048297,15]
[313341294,1707175843797,-330.57,0.00048297,15]
[313341295,1707175843807,-330.57,0.00048297,15]
[313341297,1707175843816,-330.57,0.00048297,15]
[313341300,1707175843826,-330.57,0.00048297,15]
[313341302,1707175843835,-151.0,0.000483,14]
[313341304,1707175843845,-151.0,0.000483,14]
[313341305,1707175843855,-151.0,0.000483,14]
[313341307,1707175843864,-151.0,0.000483,14]
[313341309,1707175843873,-1780.65,0.00048308,5]
[313341311,1707175843882,-7667.16816885,0.00048308,4]
[313341313,1707175843892,-2625.48929436,0.00048308,15]
[313341315,1707175843901,-235.52858062,0.00048308,30]
[313341317,1707175843910,-1099.63523633,0.00048309,4]
[313341319,1707175843919,-155.0,0.00048309,2]
[313341320,1707175843928,-1047.55348492,0.00048309,4]
[313341321,1707175843938,-385.47461765,0.0004831,15]
[313341322,1707175843947,-168.83287606,0.0004831,7]
[313341323,1707175843956,-784.8616662,0.0004831,4]
[313341324,1707175843966,-2000.0,0.0004831,7]
[313341325,1707175843974,-200.0,0.0004831,7]
[313341326,1707175843983,-2000.0,0.0004831,7]
[313341327,1707175843993,-200.0,0.0004831,7]
[313341328,1707175844002,-18703.0,0.0004839,2]
[313341329,1707175844011,-5632.0,0.0004839,2]
[313341330,1707175844020,-833.42085764,0.00048398,10]
[313341331,1707175844029,-264.55629569,0.00048398,4]
[313341332,1707175844038,-408.11,0.00048399,15]
[313341333,1707175844047,-277.58577255,0.000484,4]
[313341334,1707175844056,-682.97517687,0.000484,4]
[313341335,1707175844065,-688.73882902,0.000484,4]
[313341336,1707175844075,-647.86277859,0.000484,4]
[313341337,1707175844084,-546.59471734,0.000484,7]
[313341338,1707175844093,-575.22976378,0.000484,90]
[313341339,1707175844102,-430.29530753,0.00048404,2]
[313341340,1707175844111,-299.25522062,0.00048408,7]
[313341341,1707175844121,-240.71499822,0.00048408,4]
[313341342,1707175844130,-235.11097461,0.00048413,8]
[313341343,1707175844138,-180.71110917,0.00048413,8]
[313341344,1707175844147,-151.0,0.00048414,14]
[313341345,1707175844157,-175.615432,0.00048414,14]
[313341346,1707175844166,-151.0,0.00048414,14]
[313341347,1707175844275,-9926.0629681,0.00048414,2]
[313341348,1707175844284,-151.0,0.00048414,14]
[313341349,1707175844293,-102610.6098168,0.00048414,2]
[313341350,1707175844303,-151.0,0.00048414,14]
[313341351,1707175844312,-204.7712179,0.00048417,4]
[313341352,1707175844321,-327.734199,0.00048417,4]
[313341353,1707175844330,-1153.75350663,0.00048417,4]
[313341354,1707175844339,-191.04557841,0.00048417,4]
[313341355,1707175844349,-1071.57950665,0.00048417,4]
[313341356,1707175844358,-210.10824909,0.00048417,4]
[313341357,1707175844367,-3022.43755205,0.00048417,4]
[313341358,1707175844377,-10007.33710717,0.00048418,4]
[313341359,1707175844386,-632.50548353,0.00048418,4]
[313341360,1707175844395,-203.22221247,0.00048418,4]
[313341361,1707175844404,-151.0,0.00048418,14]
[313341362,1707175844413,-151.0,0.00048418,14]
[313341363,1707175844422,-151.0,0.00048418,14]
[313341364,1707175844431,-68783.87413978,0.00048419,4]
[313341365,1707175844441,-151.0,0.0004842,14]
[313341366,1707175844451,-151.0,0.0004842,14]
[313341367,1707175844462,-151.0,0.0004842,14]
[313341368,1707175844474,-151.0,0.0004842,14]
[313341369,1707175844483,-151.0,0.0004842,14]
[313341370,1707175844492,-239.045578,0.0004842,14]
[313341371,1707175844502,-21363.14,0.0004842,2]
[313341372,1707175844511,-21363.14,0.0004842,2]
[313341373,1707175844521,-21363.14,0.0004842,2]
[313341374,1707175844531,-21363.14,0.0004842,2]
[313341375,1707175844541,-21363.14,0.0004842,2]
[313341376,1707175844550,-21363.14,0.0004842,2]
[313341377,1707175844560,-21363.14,0.0004842,2]
[313341378,1707175844569,-21363.14,0.0004842,2]
[313341379,1707175844578,-21363.14,0.0004842,2]
[313341380,1707175844587,-21363.14,0.0004842,2]
[313341381,1707175844598,-21363.14,0.0004842,2]
[313341382,1707175844607,-21363.14,0.0004842,2]
[313341383,1707175844616,-21363.14,0.0004842,2]
[313341384,1707175844626,-21363.14,0.0004842,2]
[313341385,1707175844635,-21363.14,0.0004842,2]
[313341386,1707175844644,-21363.14,0.0004842,2]
[313341387,1707175844653,-21363.14,0.0004842,2]
[313341388,1707175844663,-21363.14,0.0004842,2]
[313341389,1707175844673,-21363.14,0.0004842,2]
[313341390,1707175844682,-21363.14,0.0004842,2]
[313341391,1707175844691,-21363.14,0.0004842,2]
[313341392,1707175844701,-21363.14,0.0004842,2]
[313341393,1707175844710,-21363.14,0.0004842,2]
[313341394,1707175844719,-21363.14,0.0004842,2]
[313341395,1707175844729,-21363.14,0.0004842,2]
[313341396,1707175844738,-21363.14,0.0004842,2]
[313341397,1707175844748,-21363.14,0.0004842,2]
[313341398,1707175844757,-21363.2954,0.0004842,2]
[313341399,1707175844766,-150.0206,0.00048448,27]
[313341400,1707175844775,-224.0,0.000485,6]
[313341401,1707175844785,-154.73,0.00048648,2]
[313341402,1707175844794,-1483.0,0.000487,117]
[313341403,1707175844803,-150.0206,0.00048748,27]
[313341404,1707175844812,-946.34,0.00048767,2]
[313341405,1707175844822,-2000.0,0.00048793,7]
[313341406,1707175844831,-200.0,0.00048793,7]
[313341407,1707175844841,-2000.0,0.00048793,7]
[313341408,1707175844850,-200.0,0.00048793,7]
[313341409,1707175844859,-1295.0,0.00049,2]
[313341410,1707175844869,-224.0,0.00049,7]
[313341411,1707175844878,-166.99392,0.00049054,4]
[313341412,1707175844888,-150.0206,0.00049148,27]
[313341413,1707175844897,-6938.0946111,0.0004917,25]
[313341414,1707175844906,-2000.0,0.00049281,7]
[313341415,1707175844915,-200.0,0.00049281,7]
[313341416,1707175844924,-2000.0,0.00049281,7]
[313341417,1707175844934,-200.0,0.00049281,7]
[313341418,1707175844944,-800.0,0.00049315,30]
[313341419,1707175844953,-1627.22407281,0.00049316,7]
[313341420,1707175844963,-151.0206,0.00049448,27]
[313341421,1707175844974,-1208.0,0.00049465,30]
[313341422,1707175844984,-224.0,0.000495,8]
[313341423,1707175844993,-200.0,0.00049736,30]
[313341424,1707175845002,-151.0206,0.00049748,27]
[313341425,1707175845011,-2000.0,0.00049774,7]
[313341426,1707175845021,-200.0,0.00049774,7]
[313341427,1707175845030,-2000.0,0.00049774,7]
[313341428,1707175845041,-200.0,0.00049774,7]
[313341429,1707175845051,-800.0,0.00049983,30]
[313341430,1707175845060,-475.72664583,0.00049999,120]
[313341431,1707175845069,-500.0,0.00049999,120]
[313341432,1707175845078,-500.0,0.00049999,120]
[313341433,1707175845087,-500.0,0.00049999,120]
[313341434,1707175845096,-500.0,0.00049999,120]
[313341435,1707175845106,-500.0,0.00049999,120]
[313341436,1707175845115,-500.0,0.00049999,120]
[313341437,1707175845124,-500.0,0.00049999,120]
[313341438,1707175845134,-500.0,0.00049999,120]
[313341439,1707175845143,-500.0,0.00049999,120]
[313341440,1707175845152,-500.0,0.00049999,120]
[313341441,1707175845161,-355.25145158,0.00049999,120]
[313341442,1707175845170,-500.0,0.00049999,120]
[313341443,1707175845179,-500.0,0.00049999,120]
[313341444,1707175845188,-500.0,0.00049999,120]
[313341445,1707175845197,-500.0,0.00049999,120]
[313341446,1707175845205,-500.0,0.00049999,120]
[313341447,1707175845214,-515.30001667,0.00049999,120]
[313341448,1707175845223,-500.0,0.00049999,120]
[313341449,1707175845232,-500.0,0.00049999,120]
[313341450,1707175845241,-500.0,0.00049999,120]
[313341451,1707175845251,-500.0,0.00049999,120]
[313341452,1707175845260,-500.0,0.00049999,120]
[313341453,1707175845269,-500.0,0.00049999,120]
[313341454,1707175845279,-500.0,0.00049999,120]
[313341455,1707175845287,-500.0,0.00049999,120]
[313341456,1707175845297,-306.56682275,0.00049999,120]
[313341457,1707175845307,-500.0,0.00049999,120]
[313341458,1707175845317,-500.0,0.00049999,120]
[313341459,1707175845326,-500.0,0.00049999,120]
[313341460,1707175845335,-500.0,0.00049999,120]
[313341461,1707175845345,-500.0,0.00049999,120]
[313341462,1707175845354,-500.0,0.00049999,120]
[313341463,1707175845363,-500.0,0.00049999,120]
[313341464,1707175845372,-500.0,0.00049999,120]
[313341465,1707175845381,-500.0,0.00049999,120]
[313341466,1707175845390,-500.0,0.00049999,120]
[313341467,1707175845400,-500.0,0.00049999,120]
[313341468,1707175845409,-500.0,0.00049999,120]
[313341469,1707175845419,-500.0,0.00049999,120]
[313341470,1707175845428,-500.0,0.00049999,120]
[313341471,1707175845437,-500.0,0.00049999,120]
[313341472,1707175845445,-500.0,0.00049999,120]
[313341473,1707175845456,-500.0,0.00049999,120]
[313341474,1707175845469,-500.0,0.00049999,120]
[313341475,1707175845480,-500.0,0.00049999,120]
[313341476,1707175845489,-500.0,0.00049999,120]
[313341477,1707175845498,-500.0,0.00049999,120]
[313341478,1707175845510,-500.0,0.00049999,120]
[313341479,1707175845520,-500.0,0.00049999,120]
[313341480,1707175845529,-500.0,0.00049999,120]
[313341481,1707175845539,-500.0,0.00049999,120]
[313341482,1707175845549,-500.0,0.00049999,120]
[313341483,1707175845558,-500.0,0.00049999,120]
[313341484,1707175845568,-500.0,0.00049999,120]
[313341485,1707175845577,-500.0,0.00049999,120]
[313341486,1707175845586,-500.0,0.00049999,120]
[313341487,1707175845595,-500.0,0.00049999,120]
[313341488,1707175845604,-500.0,0.00049999,120]
[313341489,1707175845613,-500.0,0.00049999,120]
[313341490,1707175845622,-154.51218679,0.00049999,120]
[313341491,1707175845631,-500.0,0.00049999,120]
[313341492,1707175845641,-500.0,0.00049999,120]
[313341493,1707175845650,-500.0,0.00049999,120]
[313341494,1707175845659,-500.0,0.00049999,120]
[313341495,1707175845668,-500.0,0.00049999,120]
[313341496,1707175845677,-500.0,0.00049999,120]
[313341497,1707175845686,-500.0,0.00049999,120]
[313341498,1707175845696,-500.0,0.00049999,120]
[313341499,1707175845705,-500.0,0.00049999,120]
[313341500,1707175845714,-500.0,0.00049999,120]
[313341501,1707175845724,-500.0,0.00049999,120]
[313341502,1707175845733,-500.0,0.00049999,120]
[313341503,1707175845742,-500.0,0.00049999,120]
[313341504,1707175845752,-500.0,0.00049999,120]
[313341505,1707175845761,-500.0,0.00049999,120]
[313341506,1707175845771,-500.0,0.00049999,120]
[313341507,1707175845779,-500.0,0.00049999,120]
[313341508,1707175845789,-500.0,0.00049999,120]
[313341509,1707175845799,-500.0,0.00049999,120]
[313341510,1707175845808,-348.75294527,0.00049999,120]
[313341511,1707175845817,-500.0,0.00049999,120]
[313341512,1707175845826,-500.0,0.00049999,120]
[313341513,1707175845835,-500.0,0.00049999,120]
[313341514,1707175845845,-500.0,0.00049999,120]
[313341515,1707175845854,-500.0,0.00049999,120]
[313341516,1707175845863,-500.0,0.00049999,120]
[313341517,1707175845872,-500.0,0.00049999,120]
[313341518,1707175845882,-500.0,0.00049999,120]
[313341519,1707175845891,-500.0,0.00049999,120]
[313341520,1707175845900,-500.0,0.00049999,120]
[313341521,1707175845909,-500.0,0.00049999,120]
[313341522,1707175845917,-89000.0,0.0005,40]
[313341523,1707175845926,-743.72713089,0.0005,10]
[313341524,1707175845935,-2964.75430104,0.0005,4]
[313341525,1707175845945,-270.0615337,0.0005,4]
[313341526,1707175845953,-2500.0,0.0005,120]
[313341527,1707175845962,-3270.0,0.0005,10]
[313341528,1707175845971,-224.0,0.0005,9]
[313341529,1707175845980,-622.27782309,0.0005,30]
[313341530,1707175845990,-551931.0,0.0005,30]
[313341531,1707175845998,-178.12285619,0.0005,30]
[313341532,1707175846008,-228.0910567,0.0005,30]
[313341533,1707175846016,-150.0,0.0005007,7]
[313341534,1707175846025,-150.0,0.00050142,7]
[313341535,1707175846035,-151.0206,0.00050148,29]
[313341536,1707175846043,-1409.02566752,0.000502,120]
[313341537,1707175846052,-1409.02566738,0.000502,120]
[313341538,1707175846061,-1409.02566738,0.000502,120]
[313341539,1707175846069,-1409.02566738,0.000502,120]
[313341540,1707175846078,-1409.02566738,0.000502,120]
[313341541,1707175846087,-1409.02566738,0.000502,120]
[313341542,1707175846096,-1409.02566738,0.000502,120]
[313341543,1707175846105,-1409.02566738,0.000502,120]
[313341544,1707175846114,-1409.02566738,0.000502,120]
[313341545,1707175846123,-1409.02566738,0.000502,120]
[313341546,1707175846132,-1409.02566738,0.000502,120]
[313341547,1707175846141,-1409.02566738,0.000502,120]
[313341548,1707175846149,-1409.02566738,0.000502,120]
[313341549,1707175846158,-1409.02566738,0.000502,120]
[313341550,1707175846167,-1409.02566738,0.000502,120]
[313341551,1707175846175,-1409.02566738,0.000502,120]
[313341552,1707175846184,-1409.02566738,0.000502,120]
[313341553,1707175846193,-1409.02566738,0.000502,120]
[313341554,1707175846202,-1409.02566738,0.000502,120]
[313341555,1707175846213,-1409.02566738,0.000502,120]
[313341556,1707175846222,-2000.0,0.00050272,7]
[313341557,1707175846231,-200.0,0.00050272,7]
[313341558,1707175846241,-2000.0,0.00050272,7]
[313341559,1707175846252,-200.0,0.00050272,7]
[313341560,1707175846262,-150.0,0.00050311,7]
[313341561,1707175846271,-150.0,0.00050362,7]
[313341562,1707175846280,-150.0,0.00050399,7]
[313341563,1707175846289,-420.83,0.00050411,30]
[313341564,1707175846298,-341.99,0.00050411,30]
[313341565,1707175846307,-151.0206,0.00050448,29]
[313341566,1707175846317,-150.0,0.00050448,7]
[313341567,1707175846326,-224.0,0.000505,10]
[313341568,1707175846336,-150.0,0.0005052,7]
[313341569,1707175846346,-150.0,0.0005054,7]
[313341570,1707175846355,-6938.0946111,0.00050593,27]
[313341571,1707175846364,-223.7,0.000506,7]
[313341572,1707175846373,-150.0,0.00050611,7]
[313341573,1707175846382,-150.0,0.00050676,7]
[313341574,1707175846391,-154.31,0.000507,6]
[313341575,1707175846400,-154.31,0.000507,6]
[313341576,1707175846409,-151.0206,0.00050748,29]
[313341577,1707175846418,-150.0,0.00050868,7]
[313341578,1707175846427,-150.0,0.0005094,7]
[313341579,1707175846436,-150.0,0.00050952,7]
[313341580,1707175846446,-150.0,0.00050956,7]
[313341581,1707175846455,-2581.98230265,0.0005099,45]
[313341582,1707175846468,-219.77241877,0.0005099,45]
[313341583,1707175846478,-586.89505476,0.0005099,45]
[313341584,1707175846487,-363.37426203,0.0005099,45]
[313341585,1707175846496,-78620.63733663,0.00050997,120]
[313341586,1707175846507,-235.11097461,0.00050999,10]
[313341587,1707175846516,-180.71110917,0.00050999,10]
[313341588,1707175846525,-235.11097461,0.00050999,10]
[313341589,1707175846534,-180.71110917,0.00050999,10]
[313341590,1707175846569,-100000.0,0.00051,41]
[313341591,1707175846578,-1016.10033498,0.00051,30]
[313341592,1707175846587,-998781.0,0.00051,120]
[313341593,1707175846597,-500000.0,0.00051,120]
[313341594,1707175846607,-151.96,0.00051,10]
[313341595,1707175846616,-224.0,0.00051,11]
[313341596,1707175846625,-150.0,0.00051,120]
[313341597,1707175846634,-1000.0,0.00051,2]
[313341598,1707175846643,-150.0,0.00051006,7]
[313341599,1707175846652,-1000.0,0.00051066,30]
[313341600,1707175846662,-1500.0,0.00051072,7]
[313341601,1707175846671,-1000.0,0.00051078,30]
[313341602,1707175846681,-150.0,0.00051085,7]
[313341603,1707175846691,-150.0,0.00051089,7]
[313341604,1707175846700,-150.0,0.00051137,7]
[313341605,1707175846709,-151.0206,0.00051148,59]
[313341606,1707175846718,-269.1116607,0.00051224,7]
[313341607,1707175846728,-150.0,0.00051226,7]
[313341608,1707175846737,-274.92539579,0.00051246,7]
[313341609,1707175846747,-150.0,0.00051282,7]
[313341610,1707175846756,-1500.0,0.00051302,7]
[313341611,1707175846765,-745.31,0.00051308,120]
[313341612,1707175846774,-150.0,0.00051309,7]
[313341613,1707175846784,-150.0,0.0005132,7]
[313341614,1707175846793,-150.0,0.00051324,7]
[313341615,1707175846802,-207.95413968,0.00051344,12]
[313341616,1707175846812,-150.0,0.00051363,7]
[313341617,1707175846821,-150.0,0.00051365,7]
[313341618,1707175846830,-150.0,0.00051371,7]
[313341619,1707175846840,-1500.0,0.00051401,7]
[313341620,1707175846849,-150.0,0.00051413,7]
[313341621,1707175846859,-150.0,0.00051422,7]
[313341622,1707175846868,-150.0,0.00051423,7]
[313341623,1707175846878,-150.0,0.00051433,7]
[313341624,1707175846886,-150.0,0.00051448,7]
[313341625,1707175846895,-150.0,0.00051451,7]
[313341626,1707175846904,-150.0,0.00051457,7]
[313341627,1707175846914,-150.0,0.00051461,7]
[313341628,1707175846924,-150.0,0.0005147,7]
[313341629,1707175846933,-150.0,0.00051473,7]
[313341630,1707175846942,-150.0,0.00051478,7]
[313341631,1707175846950,-223.7,0.000515,7]
[313341632,1707175846959,-150.0,0.00051506,7]
[313341633,1707175846970,-150.0,0.00051518,7]
[313341634,1707175846978,-150.0,0.00051525,7]
[313341635,1707175846988,-150.0,0.00051541,7]
[313341636,1707175846998,-150.0,0.00051545,7]
[313341637,1707175847008,-150.0,0.00051556,7]
[313341638,1707175847019,-150.0,0.00051579,7]
[313341639,1707175847029,-150.0,0.00051601,7]
[313341640,1707175847040,-150.0,0.00051605,7]
[313341641,1707175847050,-150.0,0.0005161,7]
[313341642,1707175847058,-150.0,0.00051613,7]
[313341643,1707175847067,-150.0,0.0005162,7]
[313341644,1707175847076,-300.0,0.00051621,7]
[313341645,1707175847085,-150.0,0.00051621,7]
[313341646,1707175847094,-150.0,0.00051636,7]
[313341647,1707175847105,-150.0,0.00051638,7]
[313341648,1707175847113,-300.0,0.00051663,7]
[313341649,1707175847123,-150.0,0.00051666,7]
[313341650,1707175847132,-150.0,0.00051688,7]
[313341651,1707175847141,-223.7,0.000517,7]
[313341652,1707175847151,-150.0,0.00051702,7]
[313341653,1707175847160,-150.0,0.00051703,7]
[313341654,1707175847170,-500.0,0.00051704,2]
[313341655,1707175847180,-500.0,0.00051704,2]
[313341656,1707175847189,-500.0,0.00051704,2]
[313341657,1707175847199,-500.0,0.00051704,2]
[313341658,1707175847208,-537.032,0.00051704,2]
[313341659,1707175847217,-150.0,0.00051707,7]
[313341660,1707175847227,-300.0,0.00051726,30]
[313341661,1707175847237,-300.0,0.00051726,30]
[313341662,1707175847247,-300.0,0.00051726,30]
[313341663,1707175847257,-300.0,0.00051726,30]
[313341664,1707175847266,-300.0,0.00051726,30]
[313341665,1707175847276,-323.420574,0.00051726,30]
[313341666,1707175847285,-150.0,0.00051727,7]
[313341667,1707175847295,-1500.0,0.00051729,7]
[313341668,1707175847305,-150.0,0.00051774,7]
[313341669,1707175847314,-150.0,0.00051779,7]
[313341670,1707175847325,-150.0,0.00051782,7]
[313341671,1707175847335,-150.0,0.00051783,7]
[313341672,1707175847345,-3262.6,0.00051788,117]
[313341673,1707175847354,-150.0,0.00051804,7]
[313341674,1707175847363,-150.0,0.00051824,7]
[313341675,1707175847373,-1500.0,0.00051843,7]
[313341676,1707175847382,-150.0,0.00051848,7]
[313341677,1707175847392,-1500.0,0.00051882,7]
[313341678,1707175847402,-3065.0,0.0005189,2]
[313341679,1707175847411,-923.0,0.0005189,2]
[313341680,1707175847421,-200.0,0.000519,30]
[313341681,1707175847430,-300.0,0.000519,30]
[313341682,1707175847440,-150.0,0.00051906,7]
[313341683,1707175847449,-150.0,0.00051918,7]
[313341684,1707175847459,-150.0,0.00051938,7]
[313341685,1707175847474,-150.0,0.00051939,7]
[313341686,1707175847483,-150.0,0.00051941,7]
[313341687,1707175847493,-150.0,0.00051946,7]
[313341688,1707175847503,-150.0,0.00051952,7]
[313341689,1707175847512,-19221.66158866,0.00051962,4]
[313341690,1707175847521,-166.04993873,0.00051962,4]
[313341691,1707175847530,-274.59408783,0.00051962,4]
[313341692,1707175847540,-13140.53337378,0.00051963,4]
[313341693,1707175847549,-10427.8445699,0.00051964,2]
[313341694,1707175847559,-107870.7927027,0.00051964,2]
[313341695,1707175847568,-150.0,0.00051985,7]
[313341696,1707175847578,-868.55251577,0.00051988,4]
[313341697,1707175847588,-1655.27359126,0.00051988,4]
[313341698,1707175847599,-150.0,0.00051988,7]
[313341699,1707175847608,-380.09202361,0.0005199,4]
[313341700,1707175847618,-159.27660974,0.0005199,4]
[313341701,1707175847628,-2602.60078181,0.0005199,4]
[313341702,1707175847638,-155.0,0.0005199,2]
[313341703,1707175847648,-405.24244888,0.0005199,4]
[313341704,1707175847657,-1642.67552052,0.0005199,15]
[313341705,1707175847667,-155.43641126,0.0005199,4]
[313341706,1707175847676,-2227.2783913,0.0005199,15]
[313341707,1707175847686,-155.0,0.0005199,4]
[313341708,1707175847695,-33888.84375951,0.0005199,4]
[313341709,1707175847705,-6696.46320843,0.0005199,4]
[313341710,1707175847714,-40232.57995146,0.0005199,4]
[313341711,1707175847723,-235.11097461,0.00051999,11]
[313341712,1707175847732,-180.71110917,0.00051999,11]
[313341713,1707175847742,-235.11097461,0.00051999,11]
[313341714,1707175847752,-180.71110917,0.00051999,11]
[313341715,1707175847764,-100000.0,0.00052,42]
[313341716,1707175847774,-433149.71935978,0.00052,120]
[313341717,1707175847875,-500.0,0.00052,120]
[313341718,1707175847888,-1031.92000005,0.00052,120]
[313341719,1707175847901,-2177.75,0.00052,120]
[313341720,1707175848033,-150.01,0.00048309,2]
[313341721,1707175848044,-3309.32935427,0.00048309,2]